bitfinex-derivatives/quotes_ETHF0:USTF0_20240822
["timestamp","ask_amount","ask_price","bid_price","bid_amount"]
[1724354764269,1.0746,2604.3,2604.1,0.3839]
[1724354764869,1.0746,2604.3,2604.0,1.38961115]
[1724354765771,1.0746,2604.3,2604.1,0.3839]
[1724354766353,1.0746,2604.3,2604.2,0.38389]
[1724354771261,1.0746,2604.3,2604.2,1.38959115]
[1724354772376,1.0746,2604.3,2604.2,0.38389]
[1724354773161,1.0746,2604.3,2604.2,1.38959115]
[1724354774471,0.5369,2604.3,2604.2,3.81292009]
[1724354774771,2.88194933,2604.8,2604.3,0.95969]
[1724354774772,0.00411271,2604.8,2604.3,0.95969]
[1724354774980,0.53931271,2604.8,2604.7,0.38381]
[1724354775275,0.53931271,2604.8,2604.4,6.74869465]
[1724354775276,0.53931271,2604.8,2604.6,1.39063145]
[1724354775777,0.53931271,2604.8,2604.6,1.00681145]
[1724354776076,0.53931271,2604.8,2604.6,1.39063145]
[1724354776286,0.53931271,2604.8,2604.7,0.38381]
[1724354776972,0.53931271,2604.8,2604.7,13.50055]
[1724354776973,0.00411271,2604.8,2604.7,13.50055]
[1724354777169,0.00575153,2605.0,2604.9,1.34325]
[1724354777369,0.00575153,2605.0,2604.9,8.48248333]
[1724354777570,0.00575153,2605.0,2604.9,18.1904078]
[1724354777765,0.00575153,2605.0,2604.9,14.4336078]
[1724354777961,0.00575153,2605.0,2604.9,20.28390197]
[1724354778164,0.00940604,2605.0,2604.9,9.35080983]
[1724354778375,0.00940604,2605.0,2604.9,10.85797186]
[1724354779275,0.00940604,2605.0,2604.9,0.38378]
[1724354780766,0.00940604,2605.0,2604.8,1.3881618]
[1724354780963,0.00940604,2605.0,2604.8,0.38379]
[1724354781674,0.00940604,2605.0,2604.9,0.38378]
[1724354782564,0.00940604,2605.0,2604.6,4.2121718]
[1724354782972,0.00940604,2605.0,2604.9,0.38378]
[1724354783581,0.00940604,2605.0,2604.9,7.43078]
[1724354783873,0.00940604,2605.0,2604.9,8.4351518]
[1724354787371,0.00940604,2605.0,2604.9,7.43078]
[1724354788984,0.00940604,2605.0,2604.9,0.38378]
[1724354789874,0.00940604,2605.0,2604.7,0.3838]
[1724354790067,0.00940604,2605.0,2604.4,9.6993718]
[1724354790271,0.00940604,2605.0,2604.8,0.38379]
[1724354790474,0.39317604,2605.0,2604.7,0.38381]
[1724354790682,0.00940604,2605.0,2604.7,0.38381]
[1724354790875,0.5168,2604.9,2604.7,0.38381]
[1724354791076,0.5347,2604.8,2604.7,0.38381]
[1724354791273,1.4405,2604.8,2604.5,0.38384]
[1724354791678,1.0567,2604.8,2604.5,0.38384]
[1724354792070,1.4405,2604.8,2604.5,0.38384]
[1724354792391,1.0567,2604.8,2604.5,0.38384]
[1724354792775,1.44051,2604.8,2604.4,0.38385]
[1724354793085,1.44051,2604.8,2604.5,0.38384]
[1724354793580,0.38381,2604.7,2604.4,0.38385]
[1724354793879,4.3747,2604.8,2604.1,3.2078]
[1724354794082,4.3747,2604.8,2604.2,0.38388]
[1724354794083,0.38383,2604.6,2604.2,0.38388]
[1724354795584,1.44051,2604.8,2604.4,0.38386]
[1724354796085,1.0567,2604.8,2604.1,3.2078]
[1724354796485,1.0567,2604.8,2604.6,0.38382]
[1724354796892,1.0567,2604.8,2604.6,0.38383]
[1724354797884,1.0567,2604.8,2604.7,0.38381]
[1724354798985,5.2797,2604.8,2604.6,0.38382]
[1724354799284,1.4405,2604.8,2604.6,0.38382]
[1724354799483,1.0567,2604.8,2604.7,0.38381]
[1724354799991,1.4405,2604.8,2604.7,0.38381]
[1724354800185,5.2797,2604.8,2604.6,0.38382]
[1724354800386,1.4405,2604.8,2604.6,0.38382]
[1724354800992,1.4405,2604.8,2604.7,0.38381]
[1724354801189,1.0567,2604.8,2604.7,0.38381]
[1724354804185,1.0567,2604.8,2604.5,0.38384]
[1724354804399,1.0567,2604.8,2604.5,0.38383]
[1724354804694,0.38383,2604.6,2604.5,0.38383]
[1724354804897,1.0567,2604.8,2604.4,3.2078]
[1724354805191,1.0567,2604.8,2604.7,0.38381]
[1724354805192,1.4405,2604.8,2604.7,0.38381]
[1724354806091,1.4405,2604.8,2604.1,1.9641318]
[1724354806092,0.38384,2604.6,2604.5,0.38384]
[1724354806795,1.0567,2604.8,2604.6,0.38382]
[1724354806796,0.38382,2604.7,2604.6,0.38382]
[1724354807096,0.38382,2604.7,2604.2,0.9597]
[1724354807097,0.38383,2604.6,2604.5,0.38383]
[1724354808694,0.38382,2604.7,2604.2,0.38389]
[1724354808900,0.38383,2604.6,2604.5,0.38384]
[1724354809196,0.38382,2604.7,2604.5,0.38384]
[1724354810191,1.0567,2604.8,2604.5,0.38384]
[1724354810899,0.38383,2604.6,2604.5,0.38384]
[1724354811302,0.38382,2604.7,2604.5,0.38384]
[1724354811598,0.38383,2604.6,2604.5,0.38384]
[1724354812001,0.38383,2604.7,2604.5,0.38384]
[1724354812189,0.38383,2604.7,2604.6,0.38383]
[1724354812410,0.38383,2604.7,2604.5,0.38383]
[1724354812992,0.38383,2604.7,2604.6,0.38383]
[1724354813502,4.22303,2604.7,2604.6,0.38383]
[1724354815791,0.38383,2604.7,2604.6,0.38383]
[1724354815993,4.22303,2604.7,2604.6,0.38383]
[1724354817487,1.0567,2604.8,2604.7,0.38381]
[1724354817488,1.4405,2604.8,2604.7,0.38381]
[1724354817798,1.0567,2604.8,2604.7,0.38381]
[1724354820494,1.4405,2604.8,2604.7,0.38381]
[1724354821904,0.38384,2604.6,2604.5,0.38383]
[1724354822701,4.22304,2604.6,2604.5,0.38383]
[1724354822898,0.38384,2604.6,2604.5,0.38383]
[1724354823607,0.38383,2604.7,2604.6,0.38383]
[1724354823801,0.38383,2604.6,2604.5,0.38383]
[1724354824702,1.0567,2604.8,2604.5,0.38383]
[1724354824703,0.38382,2604.7,2604.5,0.38383]
[1724354825004,0.38381,2604.7,2604.5,0.38383]
[1724354825400,1.0567,2604.8,2604.5,0.38383]
[1724354825401,0.38383,2604.6,2604.5,0.38383]
[1724354826106,0.38382,2604.7,2604.5,0.38383]
[1724354826505,0.38382,2604.7,2604.2,1.0043718]
[1724354826802,0.38382,2604.7,2604.5,0.38383]
[1724354827893,3.2078,2604.6,2604.1,1.0043718]
[1724354828098,0.38389,2604.2,2604.1,1.3882718]
[1724354828300,0.38389,2604.2,2604.0,0.3839]
[1724354828530,1.3862,2604.1,2603.9,0.38392]
[1724354828708,1.3862,2604.1,2603.8,1.00839847]
[1724354828709,0.38392,2604.0,2603.8,1.39233847]
[1724354829008,1.38621,2604.1,2603.8,0.38796667]
[1724354829203,1.0023,2604.1,2603.8,0.38796667]
[1724354829412,0.38392,2604.0,2603.8,0.38796667]
[1724354830101,0.38393,2603.9,2603.8,0.00402667]
[1724354830306,3.59173,2603.9,2603.8,0.00402667]
[1724354831410,3.2078,2603.9,2603.8,0.00402667]
[1724354832101,3.2078,2603.9,2603.8,0.38797667]
[1724354833299,3.2078,2603.9,2603.8,0.00402667]
[1724354833698,3.2078,2603.9,2603.8,0.38797667]
[1724354834302,3.7391,2603.9,2603.8,0.38797667]
[1724354837018,1.38621,2604.1,2603.8,0.38797667]
[1724354837019,1.0023,2604.1,2604.0,0.38392]
[1724354837808,1.38621,2604.1,2603.9,0.38393]
[1724354838011,1.38621,2604.1,2604.0,0.38392]
[1724354838197,1.38621,2604.1,2603.9,0.38392]
[1724354838403,0.5034,2604.0,2603.9,0.38392]
[1724354840104,0.88732,2604.0,2603.9,0.38392]
[1724354840611,0.5034,2604.0,2603.9,0.38392]
[1724354841306,0.88732,2604.0,2603.9,0.38392]
[1724354841509,0.5034,2604.0,2603.8,0.38795667]
[1724354841713,0.88733,2604.0,2603.8,0.38795667]
[1724354842011,0.38393,2603.9,2603.8,0.00402667]
[1724354844412,0.38393,2603.9,2603.8,0.38797667]
[1724354844913,0.88732,2604.0,2603.8,0.38796667]
[1724354845416,0.88732,2604.0,2603.8,0.38795667]
[1724354846014,0.88732,2604.0,2603.9,0.38393]
[1724354849507,4.72732,2604.0,2603.9,0.38393]
[1724354850516,0.88732,2604.0,2603.9,0.38393]
[1724354851215,0.38393,2603.9,2603.8,0.38796667]
[1724354852513,0.38393,2603.9,2603.8,0.38797667]
[1724354855705,0.88732,2604.0,2603.9,0.38393]
[1724354856506,0.5034,2604.0,2603.9,0.38393]
[1724354859013,0.88732,2604.0,2603.9,0.38393]
[1724354859213,0.5034,2604.0,2603.9,0.38393]
[1724354860116,0.5034,2604.0,2603.8,0.38796667]
[1724354860314,0.38393,2603.9,2603.8,0.38796667]
[1724354862917,0.88732,2604.0,2603.9,0.38393]
[1724354864313,0.5034,2604.0,2603.9,0.38393]
[1724354865122,0.5034,2604.0,2603.9,1.34377]
[1724354866123,0.5034,2604.0,2603.9,0.38393]
[1724354870527,0.88732,2604.0,2603.9,0.38393]
[1724354871827,0.38393,2603.9,2603.8,0.38796667]
[1724354872028,0.38393,2603.9,2603.8,0.00402667]
[1724354872620,0.38393,2603.9,2603.8,0.38797667]
[1724354873221,0.38393,2603.9,2603.8,1.39234847]
[1724354874221,0.38393,2603.9,2603.8,3.31335707]
[1724354874623,0.38393,2603.9,2603.8,2.30898527]
[1724354875020,0.38393,2603.9,2603.8,3.8161473]
[1724354876022,0.88732,2604.0,2603.9,0.38393]
[1724354876225,0.5034,2604.0,2603.9,3.31263709]
[1724354876426,2.49402662,2604.6,2604.4,0.38385]
[1724354876632,1.5512,2604.5,2604.4,0.38385]
[1724354876928,1.5512,2604.5,2604.4,1.39152764]
[1724354879324,1.5512,2604.5,2604.4,0.38385]
[1724354880131,4.759,2604.5,2604.4,0.38385]
[1724354880430,0.38386,2604.4,2604.2,1.39155764]
[1724354880619,4.759,2604.5,2604.1,1.00767764]
[1724354880819,4.759,2604.5,2604.0,1.51151647]
[1724354880820,3.59169,2604.2,2604.0,1.39158764]
[1724354881030,0.3839,2604.1,2603.9,1.39160764]
[1724354881237,0.5185,2604.0,2603.9,1.39160764]
[1724354881737,0.5185,2604.0,2603.9,3.31253667]
[1724354882323,0.5185,2604.0,2603.9,3.81629906]
[1724354882527,1.0291,2604.0,2603.9,3.81629906]
[1724354883422,1.0291,2604.0,2603.9,3.81627522]
[1724354887332,1.41302,2604.0,2603.8,1.01072419]
[1724354887532,1.41302,2604.0,2603.8,0.00402667]
[1724354887533,3.59173,2603.9,2603.8,0.00402667]
[1724354891641,1.0291,2604.0,2603.8,0.00402667]
[1724354891642,1.0291,2604.0,2603.8,0.38797667]
[1724354891834,1.0291,2604.0,2603.8,0.00402667]
[1724354892041,1.0291,2604.0,2603.8,0.38795667]
[1724354893139,1.0291,2604.0,2603.9,0.38393]
[1724354893332,1.41302,2604.0,2603.9,0.38393]
[1724354893530,0.38393,2603.9,2603.8,0.00402667]
[1724354893738,0.38395,2603.8,2603.7,0.00575153]
[1724354894139,4.22475,2603.8,2603.7,0.00575153]
[1724354894641,4.22475,2603.8,2603.4,0.384]
[1724354894642,0.38399,2603.6,2603.4,0.384]
[1724354894938,3.59179,2603.6,2603.4,0.3885015]
[1724354895141,0.38399,2603.5,2603.4,0.3885015]
[1724354895343,1.34397,2603.5,2603.4,0.0044915]
[1724354895529,4.22479,2603.5,2603.4,0.0044915]
[1724354896029,3.2078,2603.6,2603.5,0.38399]
[1724354896460,7.0486,2603.6,2603.4,0.3884815]
[1724354896635,7.0486,2603.6,2603.4,0.0044915]
[1724354896832,0.49215153,2603.7,2603.6,0.38398]
[1724354898341,0.00575153,2603.7,2603.6,0.38398]
[1724354898543,0.00575153,2603.7,2603.6,1.34393]
[1724354898843,0.00575153,2603.7,2603.6,4.22478]
[1724354899242,0.00575153,2603.7,2603.6,5.18473]
[1724354900243,0.00575153,2603.7,2603.6,4.22478]
[1724354901143,0.00575153,2603.7,2603.6,0.38398]
[1724354901345,0.00575153,2603.7,2603.6,4.22478]
[1724354902846,0.00575153,2603.7,2603.6,0.38398]
[1724354903344,0.00575153,2603.7,2603.6,4.22478]
[1724354903739,0.00575153,2603.7,2603.6,6.14568506]
[1724354906051,0.00575153,2603.7,2603.6,2.30488506]
[1724354906250,0.00575153,2603.7,2603.6,4.22478]
[1724354908452,0.49885153,2603.7,2603.6,4.22478]
[1724354908751,0.49885153,2603.7,2603.6,7.65559049]
[1724354910455,0.49885153,2603.7,2603.6,1.00654278]
[1724354910659,0.88281153,2603.7,2603.6,1.00654278]
[1724354910846,0.88281153,2603.7,2603.5,1.00654278]
[1724354910847,0.38398,2603.6,2603.5,1.00654278]
[1724354911048,0.38399,2603.5,2603.4,0.0044915]
[1724354911360,0.90759,2603.5,2603.4,1.01103428]
[1724354911548,0.5236,2603.5,2603.4,1.01103428]
[1724354911742,0.90759,2603.5,2603.4,1.01103428]
[1724354912345,0.5236,2603.5,2603.4,1.39503428]
[1724354913255,0.5236,2603.5,2603.4,0.3884915]
[1724354913682,0.5236,2603.5,2603.4,0.0044915]
[1724354914758,0.5236,2603.5,2603.4,0.3884915]
[1724354916060,0.5236,2603.5,2603.4,5.1893115]
[1724354916251,0.5236,2603.5,2603.4,6.19585428]
[1724354916452,0.5236,2603.5,2603.4,7.57885428]
[1724354916852,0.5236,2603.5,2603.4,5.6122915]
[1724354917151,0.5236,2603.5,2603.4,2.77803428]
[1724354917354,0.5236,2603.5,2603.4,6.61883428]
[1724354918758,0.5236,2603.5,2603.4,6.63791899]
[1724354919356,0.5236,2603.5,2603.4,6.67864228]
[1724354920351,0.5236,2603.5,2603.4,2.83784228]
[1724354922061,0.5236,2603.5,2603.4,1.8312995]
[1724354924152,0.5236,2603.5,2603.4,2.83784228]
[1724354928552,0.5236,2603.5,2603.4,4.75901024]
[1724354929657,0.5236,2603.5,2603.4,3.75246746]
[1724354930157,0.5236,2603.5,2603.4,9.51330746]
[1724354930365,0.5236,2603.5,2603.4,9.56510746]
[1724354930661,0.49885153,2603.7,2603.6,1.76698]
[1724354930855,0.49885153,2603.7,2603.6,5.19787083]
[1724354931056,0.00575153,2603.7,2603.6,9.99835094]
[1724354931257,0.00575153,2603.7,2603.6,8.48862807]
[1724354931458,0.00575153,2603.7,2603.6,10.56139989]
[1724354931757,0.00575153,2603.7,2603.6,14.40319741]
[1724354932152,0.00575153,2603.7,2603.6,10.56139989]
[1724354932357,0.00575153,2603.7,2603.6,14.40309942]
[1724354932559,0.00575153,2603.7,2603.6,14.40310259]
[1724354933458,0.00575153,2603.7,2603.6,10.56230259]
[1724354933655,0.00575153,2603.7,2603.6,10.76064989]
[1724354933869,0.00575153,2603.7,2603.6,11.72059989]
[1724354934057,0.00575153,2603.7,2603.6,15.56139989]
[1724354934653,0.00575153,2603.7,2603.6,14.40310829]
[1724354935857,0.00575153,2603.7,2603.6,14.40304684]
[1724354936456,0.00575153,2603.7,2603.6,15.36299684]
[1724354936758,1.383,2604.7,2604.3,0.38387]
[1724354936954,10.988,2604.8,2604.4,1.383]
[1724354937164,1.541,2604.7,2604.6,1.383]
[1724354937653,1.541,2604.7,2604.6,1.442808]
[1724354938457,1.541,2604.7,2604.6,0.059808]
[1724354938862,1.541,2604.7,2604.6,0.443638]
[1724354939657,1.0214,2604.7,2604.6,0.443638]
[1724354939862,1.0214,2604.7,2604.6,3.651438]
[1724354940057,1.0214,2604.7,2604.6,0.443638]
[1724354958274,1.0214,2604.7,2604.6,3.651438]
[1724354958673,0.51255153,2604.9,2604.8,0.3838]
[1724354959067,0.51255153,2604.9,2604.8,4.223]
[1724354959578,0.51255153,2604.9,2604.8,4.282808]
[1724354959782,0.51255153,2604.9,2604.8,0.443608]
[1724354959983,0.51255153,2604.9,2604.8,4.282808]
[1724354960283,0.89633153,2604.9,2604.8,0.059808]
[1724354960876,0.89633153,2604.9,2604.6,0.38957153]
[1724354960877,0.3838,2604.8,2604.6,0.00575153]
[1724354961175,0.3838,2604.8,2604.6,0.38958153]
[1724354961368,2.27934153,2604.9,2604.6,0.38958153]
[1724354961574,2.27934153,2604.9,2604.7,0.38381]
[1724354961768,0.51255153,2604.9,2604.7,0.38381]
[1724354961968,0.51255153,2604.9,2604.8,1.383]
[1724354963080,0.51255153,2604.9,2604.7,1.7668]
[1724354963281,0.51255153,2604.9,2604.8,0.3838]
[1724354964077,5.10335153,2604.9,2604.6,0.00575153]
[1724354964272,0.95956,2604.7,2604.0,2.38936152]
[1724354964477,8.72035153,2604.9,2604.3,0.38386]
[1724354964478,1.383,2604.4,2604.3,0.38386]
[1724354964780,3.2078,2604.5,2604.3,0.38386]
[1724354964983,1.0006,2604.4,2604.2,1.76688]
[1724354965183,1.0006,2604.4,2604.3,0.38387]
[1724354965383,1.0006,2604.4,2604.2,1.383]
[1724354965586,1.0006,2604.4,2604.3,0.38387]
[1724354966295,1.0006,2604.4,2604.2,1.76688]
[1724354966485,1.0006,2604.4,2604.2,0.38388]
[1724354967487,0.5341,2604.3,2604.2,0.38388]
[1724354967880,0.5341,2604.3,2604.0,4.60382305]
[1724354968185,0.91797,2604.3,2604.0,4.21991305]
[1724354968386,0.5341,2604.3,2604.0,1.01211305]
[1724354968585,0.5341,2604.3,2604.0,1.39602305]
[1724354969282,0.5341,2604.3,2604.1,0.38389]
[1724354970183,3.2078,2604.2,2604.1,0.38389]
[1724354973989,0.5341,2604.3,2604.2,0.38389]
[1724354979783,0.5341,2604.3,2604.2,1.38774734]
[1724354980584,0.5341,2604.3,2604.2,3.8102066]
[1724354980784,0.5341,2604.3,2604.2,4.7699266]
[1724354981188,0.5341,2604.3,2604.2,3.8102066]
[1724354981392,0.5341,2604.3,2604.2,0.38389]
[1724354981925,0.5341,2604.3,2604.2,2.30445725]
[1724354982286,0.5341,2604.3,2604.2,3.81528944]
[1724354982788,0.5341,2604.3,2604.2,2.30445725]
[1724354983292,0.5341,2604.3,2604.2,3.3115361]
[1724354984496,0.5341,2604.3,2604.2,1.3909151]
[1724354985390,0.5341,2604.3,2604.2,0.38389]
[1724354986489,0.5341,2604.3,2604.2,1.76689]
[1724354989899,0.5341,2604.3,2604.2,0.38389]
[1724354990297,0.5341,2604.3,2604.1,1.383]
[1724354990503,0.5341,2604.3,2604.2,0.38389]
[1724354990795,0.91797,2604.3,2604.1,1.76689]
[1724354991292,0.91797,2604.3,2604.0,1.01277663]
[1724354991293,0.38389,2604.2,2604.0,2.77968663]
[1724354991487,3.59169,2604.2,2604.0,1.38875153]
[1724354991691,3.2078,2604.2,2604.0,1.38875153]
[1724354991993,3.59169,2604.2,2604.0,1.38875153]
[1724354992392,3.2078,2604.2,2604.0,1.38875153]
[1724354992592,3.2078,2604.2,2604.0,0.00575153]
[1724354992898,3.59169,2604.2,2604.0,1.38875153]
[1724354994198,3.2078,2604.2,2604.0,1.77267153]
[1724354994694,3.2078,2604.2,2604.0,1.38875153]
[1724354994896,0.5341,2604.3,2604.1,0.3839]
[1724354995698,0.5341,2604.3,2604.1,1.7669]
[1724354996203,0.5341,2604.3,2604.1,1.383]
[1724354996499,0.5341,2604.3,2604.1,1.7669]
[1724354997699,0.5341,2604.3,2604.2,0.38389]
[1724354997908,0.5341,2604.3,2604.2,1.76689]
[1724354999312,0.5341,2604.3,2604.2,2.72661]
[1724354999816,0.5341,2604.3,2604.2,1.76689]
[1724355002821,1.0006,2604.4,2604.3,0.38387]
[1724355005430,1.0006,2604.4,2604.3,1.3908951]
[1724355006419,1.0006,2604.4,2604.3,2.30438654]
[1724355006620,1.0006,2604.4,2604.3,3.31138745]
[1724355006930,1.0006,2604.4,2604.3,1.39087091]
[1724355007635,1.0006,2604.4,2604.3,1.00700091]
[1724355007819,1.38446,2604.4,2604.3,1.00700091]
[1724355008226,1.0006,2604.4,2604.3,1.39087091]
[1724355008824,1.38446,2604.4,2604.3,1.00700091]
[1724355009423,0.38387,2604.3,2604.2,1.00700091]
[1724355009629,0.91787,2604.3,2604.2,1.383]
[1724355009822,0.91787,2604.3,2604.2,2.39000091]
[1724355010023,0.91787,2604.3,2604.2,1.383]
[1724355010228,0.91787,2604.3,2604.2,2.39000091]
[1724355010726,0.91787,2604.3,2604.2,1.383]
[1724355011630,0.534,2604.3,2604.2,1.76689]
[1724355011818,0.534,2604.3,2604.2,2.77389091]
[1724355012021,0.534,2604.3,2604.2,1.76689]
[1724355012228,0.534,2604.3,2604.2,2.77389091]
[1724355013132,0.534,2604.3,2604.2,1.76689]
[1724355014135,1.0006,2604.4,2604.3,0.38387]
[1724355014335,0.4964,2604.4,2604.3,1.76687]
[1724355014737,0.4964,2604.4,2604.3,2.77387091]
[1724355014937,0.4964,2604.4,2604.3,1.76687]
[1724355015434,0.4964,2604.4,2604.3,0.38387]
[1724355017935,0.4964,2604.4,2604.3,1.76687]
[1724355018327,0.4964,2604.4,2604.3,0.38387]
[1724355018533,3.7042,2604.4,2604.3,0.38387]
[1724355018727,4.08807,2604.4,2604.2,1.76688]
[1724355018930,0.4925,2604.3,2604.2,0.38388]
[1724355020243,0.4925,2604.3,2604.2,1.39088091]
[1724355020542,0.87637,2604.3,2604.2,1.00700091]
[1724355020839,0.4925,2604.3,2604.2,1.00700091]
[1724355021229,0.4925,2604.3,2604.2,1.39089091]
[1724355021843,3.7003,2604.3,2604.2,1.39089091]
[1724355023645,3.7003,2604.3,2604.2,3.31158672]
[1724355023840,3.7003,2604.3,2604.2,3.31159712]
[1724355024443,3.7003,2604.3,2604.2,1.39089091]
[1724355025543,3.7003,2604.3,2604.2,1.00700091]
[1724355025854,3.7003,2604.3,2604.2,1.39089091]
[1724355026538,3.7003,2604.3,2604.2,2.77389091]
[1724355026934,3.7003,2604.3,2604.2,4.69461301]
[1724355027141,3.7003,2604.3,2604.2,2.77389091]
[1724355028248,3.7003,2604.3,2604.2,1.39089091]
[1724355029047,3.7003,2604.3,2604.2,1.00700091]
[1724355029254,7.5403,2604.3,2604.2,1.00700091]
[1724355030045,7.92417,2604.3,2604.2,1.00700091]
[1724355030247,7.92417,2604.3,2604.1,2.77389091]
[1724355030441,0.38389,2604.2,2604.1,1.00700091]
[1724355030645,0.95976,2604.1,2603.7,1.00700091]
[1724355030839,4.5908,2603.8,2603.7,1.00700091]
[1724355031449,3.2078,2603.8,2603.6,2.77397091]
[1724355033248,3.2078,2603.8,2603.7,0.38396]
[1724355033644,3.2078,2603.8,2603.7,1.76696]
[1724355034052,1.0522,2603.9,2603.8,0.38394]
[1724355034655,0.5101,2604.0,2603.9,0.38393]
[1724355034854,0.5101,2604.0,2603.9,1.76693]
[1724355035241,0.5256,2604.1,2604.0,0.38392]
[1724355035539,3.2078,2604.2,2604.1,0.3839]
[1724355035766,3.2078,2604.2,2604.1,1.7669]
[1724355036655,3.2078,2604.2,2604.1,0.3839]
[1724355036853,3.2078,2604.2,2604.0,1.76691]
[1724355037049,4.97469,2604.2,2603.9,1.76692]
[1724355037353,1.76691,2604.1,2603.8,0.38394]
[1724355037654,3.2078,2603.9,2603.8,1.76694]
[1724355038359,3.2078,2603.9,2603.8,2.77376485]
[1724355038549,4.2279,2603.9,2603.8,2.77376485]
[1724355038947,1.0201,2603.9,2603.8,2.77376485]
[1724355039156,0.5102,2603.9,2603.8,5.60774]
[1724355039456,0.5262,2604.0,2603.9,0.38393]
[1724355039651,0.5099,2604.1,2604.0,0.38392]
[1724355039855,4.2051,2604.2,2604.1,0.3839]
[1724355040443,0.4972,2604.2,2604.1,0.3839]
[1724355041353,2.48947253,2604.4,2604.1,12.0478]
[1724355041561,2.48947253,2604.4,2604.3,0.38387]
[1724355041953,2.48947253,2604.4,2604.3,5.54857]
[1724355042150,2.48947253,2604.4,2604.3,9.38857]
[1724355043550,1.4877,2604.8,2604.6,0.38383]
[1724355043749,1.4877,2604.8,2604.6,1.38989165]
[1724355043961,1.4877,2604.8,2604.7,0.38381]
[1724355044461,0.4972,2604.8,2604.7,5.22907165]
[1724355044759,0.00575153,2604.9,2604.8,0.3838]
[1724355045062,0.00575153,2604.9,2604.8,2.30396327]
[1724355045365,0.00575153,2604.9,2604.8,5.2288894]
[1724355045556,0.00575153,2604.9,2604.8,1.0058894]
[1724355045867,0.00575153,2604.9,2604.7,1.0058894]
[1724355046060,0.00575153,2604.9,2604.7,1.3896994]
[1724355046761,0.00575153,2604.9,2604.7,1.0058894]
[1724355046958,3.21355153,2604.9,2604.7,1.0058894]
[1724355047258,0.38383,2604.7,2604.3,1.3897594]
[1724355047461,0.9979,2604.6,2604.3,1.3897594]
[1724355047661,1.4845,2604.6,2604.3,1.3897594]
[1724355048666,1.4845,2604.6,2604.3,1.0058894]
[1724355048964,1.4845,2604.6,2604.4,0.38386]
[1724355049167,1.4845,2604.6,2604.4,1.3897494]
[1724355049967,1.4845,2604.6,2604.4,0.38386]
[1724355050261,1.4845,2604.6,2604.3,1.3897494]
[1724355050458,1.4845,2604.6,2604.3,0.38387]
[1724355051469,1.86833,2604.6,2604.3,0.38387]
[1724355051662,1.4845,2604.6,2604.3,0.38387]
[1724355052966,3.2078,2604.4,2604.0,1.0058894]
[1724355053172,3.59167,2604.4,2604.0,0.38391]
[1724355054858,3.2078,2604.4,2603.8,4.2136894]
[1724355055058,0.3839,2604.1,2603.7,1.0058894]
[1724355055262,0.3839,2604.1,2603.6,4.82709248]
[1724355055263,1.5595,2604.0,2603.8,0.38394]
[1724355055766,1.5595,2604.0,2603.6,4.3238894]
[1724355055967,1.5595,2604.0,2603.9,0.38393]
[1724355056967,1.5595,2604.0,2603.8,0.38394]
[1724355057167,1.5595,2604.0,2603.9,0.38393]
[1724355060963,3.2078,2604.5,2603.9,14.07871537]
[1724355061166,0.5124,2604.3,2604.2,0.38388]
[1724355061358,3.21355153,2604.9,2604.2,6.74626851]
[1724355061564,0.5124,2604.8,2604.7,0.3838]
[1724355062166,0.5124,2604.8,2604.6,3.318]
[1724355062470,0.5124,2604.8,2604.6,3.70182]
[1724355063370,0.5124,2604.8,2604.7,0.38381]
[1724355063577,0.5124,2604.8,2604.6,3.70182]
[1724355063966,0.5124,2604.8,2604.7,0.38381]
[1724355064972,0.5124,2604.8,2604.6,0.38382]
[1724355067872,0.5124,2604.8,2604.4,1.00504057]
[1724355067873,0.5124,2604.8,2604.5,0.38383]
[1724355068479,0.8962,2604.8,2604.5,0.38383]
[1724355068974,0.89621,2604.8,2604.4,1.38889057]
[1724355069478,0.38382,2604.7,2604.4,1.38889057]
[1724355069667,0.89621,2604.8,2604.5,0.38384]
[1724355070276,0.5124,2604.8,2604.4,1.00504057]
[1724355070479,0.5124,2604.8,2604.5,0.38383]
[1724355070776,0.5124,2604.8,2604.6,0.38383]
[1724355073869,0.5124,2604.8,2604.7,0.38381]
[1724355077775,0.00575153,2604.9,2604.8,0.3838]
[1724355077977,0.00575153,2604.9,2604.8,4.223]
[1724355078180,0.00575153,2604.9,2604.8,13.10739482]
[1724355078374,0.00575153,2604.9,2604.8,50.66937201]
[1724355078573,0.00365451,2605.0,2604.9,3.70178]
[1724355078782,0.00365451,2605.0,2604.9,11.75256535]
[1724355078978,0.00365451,2605.0,2604.9,17.66861389]
[1724355079377,0.00365451,2605.0,2604.9,19.1764208]
[1724355079577,0.00365451,2605.0,2604.9,18.67205797]
[1724355080085,0.00365451,2605.0,2604.9,17.66861389]
[1724355080476,0.00365451,2605.0,2604.9,16.75221639]
[1724355080676,0.00365451,2605.0,2604.9,18.67198063]
[1724355081083,0.00365451,2605.0,2604.9,8.54441639]
[1724355081279,0.00365451,2605.0,2604.9,18.6721401]
[1724355081584,0.00365451,2605.0,2604.9,16.75221639]
[1724355081974,0.00365451,2605.0,2604.9,18.67221569]
[1724355082176,0.00365451,2605.0,2604.9,6.51501569]
[1724355082380,0.00365451,2605.0,2604.9,0.38378]
[1724355082584,0.00365451,2605.0,2604.7,1.00918792]
[1724355082585,0.00365451,2605.0,2604.8,0.38379]
[1724355083183,0.00365451,2605.0,2604.7,0.00575153]
[1724355083387,0.00365451,2605.0,2604.9,0.38378]
[1724355083573,0.52755451,2605.0,2604.9,0.38378]
[1724355085282,0.52755451,2605.0,2604.9,3.70178]
[1724355085489,0.52755451,2605.0,2604.9,7.54098]
[1724355086591,0.00365451,2605.0,2604.9,7.54098]
[1724355090287,0.00365451,2605.0,2604.9,10.74878]
[1724355091192,0.00365451,2605.0,2604.9,7.54098]
[1724355092886,0.00365451,2605.0,2604.9,3.70178]
[1724355093696,0.00365451,2605.0,2604.9,7.54098]
[1724355096091,0.00365451,2605.0,2604.9,3.70178]
[1724355096801,0.00365451,2605.0,2604.9,7.54098]
[1724355096990,0.00365451,2605.0,2604.9,3.70178]
[1724355098594,0.00365451,2605.0,2604.9,6.90958]